fUSD/lending_fUSD_20241121
["ID","MTS","AMOUNT","RATE_DAILY","PERIOD"]
[342852708,1732183841074,-153.0,0.0004076,2]
[342852709,1732183841083,-500.0,0.000408,120]
[342852710,1732183841092,-7900.0,0.000408,14]
[342852711,1732183841102,-150.0,0.00040814,2]
[342852712,1732183841111,-150.0,0.00040816,2]
[342852713,1732183841120,-150.0,0.00040818,2]
[342852714,1732183841129,-150.0,0.00040818,2]
[342852715,1732183841138,-1500.0,0.00040821,2]
[342852716,1732183841148,-150.0,0.00040823,2]
[342852717,1732183841157,-150.0,0.00040827,2]
[342852718,1732183841170,-150.0,0.0004083,2]
[342852719,1732183841179,-150.0,0.0004083,2]
[342852720,1732183841188,-150.0,0.00040833,2]
[342852721,1732183841198,-150.0,0.00040837,2]
[342852722,1732183841207,-150.0,0.00040838,2]
[342852723,1732183841215,-150.0,0.0004084,2]
[342852724,1732183841224,-150.0,0.0004084,2]
[342852725,1732183841234,-1292.77,0.00040841,2]
[342852726,1732183841242,-150.0,0.00040842,2]
[342852727,1732183841251,-150.0,0.00040848,2]
[342852728,1732183841261,-150.0,0.00040849,2]
[342852729,1732183841270,-1500.0,0.00040849,2]
[342852730,1732183841279,-150.0,0.00040852,2]
[342852731,1732183841288,-150.0,0.00040852,2]
[342852732,1732183841297,-150.0,0.00040853,2]
[342852733,1732183841307,-150.0,0.00040856,2]
[342852734,1732183841315,-150.0,0.00040857,2]
[342852735,1732183841324,-1500.0,0.00040858,2]
[342852736,1732183841333,-150.0,0.00040858,2]
[342852737,1732183841342,-150.0,0.00040859,2]
[342852738,1732183841351,-1500.0,0.00040859,2]
[342852739,1732183841360,-150.0,0.00040863,2]
[342852740,1732183841369,-150.0,0.00040871,2]
[342852741,1732183841378,-150.0,0.00040871,2]
[342852742,1732183841387,-150.0,0.00040872,2]
[342852743,1732183841396,-150.0,0.00040874,2]
[342852744,1732183841405,-150.0,0.00040877,2]
[342852745,1732183841419,-150.0,0.00040877,2]
[342852746,1732183841427,-150.0,0.00040877,2]
[342852747,1732183841437,-150.0,0.00040878,2]
[342852748,1732183841446,-150.0,0.00040879,2]
[342852749,1732183841455,-150.0,0.00040881,2]
[342852750,1732183841464,-150.0,0.00040885,2]
[342852751,1732183841474,-150.0,0.00040886,2]
[342852752,1732183841482,-1500.0,0.00040888,2]
[342852753,1732183841492,-1500.0,0.00040893,2]
[342852754,1732183841501,-150.0,0.00040898,2]
[342852755,1732183841510,-500.0,0.00040899,77]
[342852756,1732183841519,-1500.0,0.000409,14]
[342852757,1732183841528,-150.0,0.00040902,2]
[342852758,1732183841537,-150.0,0.00040902,2]
[342852759,1732183841547,-150.0,0.00040906,2]
[342852760,1732183841556,-150.0,0.00040907,2]
[342852761,1732183841564,-150.0,0.00040911,2]
[342852762,1732183841574,-150.0,0.00040914,2]
[342852763,1732183841583,-150.0,0.00040916,2]
[342852764,1732183841592,-1238.25496507,0.00040919,2]
[342852765,1732183841601,-150.0,0.00040922,2]
[342852766,1732183841610,-150.0,0.00040927,2]
[342852767,1732183841619,-150.0,0.00040927,2]
[342852768,1732183841628,-1500.0,0.00040933,2]
[342852769,1732183841637,-150.0,0.00040934,2]
[342852770,1732183841647,-150.0,0.00040934,2]
[342852771,1732183841656,-150.0,0.00040937,2]
[342852772,1732183841668,-150.0,0.00040937,2]
[342852773,1732183841677,-150.0,0.00040943,2]
[342852774,1732183841686,-1500.0,0.00040943,2]
[342852775,1732183841695,-150.0,0.00040944,2]
[342852776,1732183841704,-150.0,0.00040945,2]
[342852777,1732183841714,-150.0,0.00040946,2]
[342852778,1732183841723,-150.0,0.00040949,2]
[342852779,1732183841732,-150.0,0.0004095,2]
[342852780,1732183841742,-1500.0,0.00040954,2]
[342852781,1732183841751,-150.0,0.00040956,2]
[342852782,1732183841761,-1500.0,0.00040957,2]
[342852783,1732183841770,-150.0,0.00040962,2]
[342852784,1732183841779,-150.0,0.00040966,2]
[342852785,1732183841788,-150.0,0.00040968,2]
[342852786,1732183841797,-150.0,0.00040974,2]
[342852787,1732183841807,-150.0,0.00040975,2]
[342852788,1732183841816,-150.0,0.00040976,2]
[342852789,1732183841825,-150.0,0.00040982,2]
[342852790,1732183841834,-150.0,0.00040986,2]
[342852791,1732183841844,-1067.42164695,0.00040988,2]
[342852792,1732183841853,-150.0,0.00040989,2]
[342852793,1732183841863,-610.59298679,0.00040995,2]
[342852794,1732183841872,-2542.68060142,0.00040995,2]
[342852795,1732183841881,-150.0,0.00040995,2]
[342852796,1732183841891,-1500.0,0.00040997,2]
[342852797,1732183841900,-50000.0,0.00041,11]
[342852798,1732183841909,-50000.0,0.00041,21]
[342852799,1732183841918,-50000.0,0.00041,31]
[342852800,1732183841928,-200.0,0.00041,120]
[342852801,1732183841937,-26935.43299493,0.00041,18]
[342852802,1732183841947,-4773.90430632,0.00041,14]
[342852803,1732183841956,-152.0,0.00041,60]
[342852804,1732183841966,-2083.0,0.00041,117]
[342852805,1732183841975,-5000.0,0.00041,32]
[342852806,1732183841984,-10545.64851754,0.00041,120]
[342852807,1732183841994,-500.0,0.00041,2]
[342852808,1732183842004,-150.0,0.00041001,2]
[342852809,1732183842013,-150.0,0.00041005,2]
[342852810,1732183842022,-150.0,0.00041006,2]
[342852811,1732183842031,-150.0,0.00041009,2]
[342852812,1732183842040,-150.0,0.00041009,2]
[342852813,1732183842049,-150.0,0.00041011,2]
[342852814,1732183842059,-300.0,0.00041012,2]
[342852815,1732183842070,-150.0,0.00041013,2]
[342852816,1732183842083,-150.0,0.00041013,2]
[342852817,1732183842093,-150.0,0.00041014,2]
[342852818,1732183842104,-150.0,0.00041014,2]
[342852819,1732183842114,-150.0,0.00041014,2]
[342852820,1732183842125,-150.0,0.0004102,2]
[342852821,1732183842134,-150.0,0.00041023,2]
[342852822,1732183842143,-150.0,0.00041023,2]
[342852823,1732183842153,-150.0,0.00041025,2]
[342852824,1732183842163,-150.0,0.00041025,2]
[342852825,1732183842172,-150.0,0.00041027,2]
[342852826,1732183842181,-150.0,0.00041027,2]
[342852827,1732183842190,-150.0,0.00041029,2]
[342852828,1732183842199,-150.0,0.00041031,2]
[342852829,1732183842208,-150.0,0.00041032,2]
[342852830,1732183842218,-150.0,0.00041034,2]
[342852831,1732183842227,-1500.0,0.00041034,2]
[342852832,1732183842236,-150.0,0.00041034,2]
[342852833,1732183842245,-150.0,0.00041035,2]
[342852834,1732183842254,-1500.0,0.00041036,2]
[342852835,1732183842263,-150.0,0.00041038,2]
[342852836,1732183842272,-150.0,0.00041039,2]
[342852837,1732183842281,-1500.0,0.00041041,2]
[342852838,1732183842290,-150.0,0.00041052,2]
[342852839,1732183842299,-150.0,0.00041055,2]
[342852840,1732183842308,-150.0,0.00041055,2]
[342852841,1732183842317,-1500.0,0.00041059,2]
[342852842,1732183842327,-150.0,0.00041061,2]
[342852843,1732183842336,-150.0,0.00041068,2]
[342852844,1732183842345,-2469.0,0.00041068,120]
[342852845,1732183842354,-150.0,0.00041069,2]
[342852846,1732183842363,-150.0,0.00041077,2]
[342852847,1732183842372,-1500.0,0.00041077,2]
[342852848,1732183842381,-150.0,0.00041078,2]
[342852849,1732183842391,-150.0,0.00041079,2]
[342852850,1732183842400,-150.0,0.00041079,2]
[342852851,1732183842411,-161.592643,0.00041088,120]
[342852852,1732183842421,-1066.51443,0.00041088,30]
[342852853,1732183842430,-608.24000221,0.00041089,2]
[342852854,1732183842439,-7889.2172749,0.00041089,2]
[342852855,1732183842449,-300.0,0.00041094,120]
[342852856,1732183842458,-300.0,0.00041094,120]
[342852857,1732183842467,-359.02260083,0.00041094,120]
[342852858,1732183842479,-874.12726468,0.00041094,2]
[342852859,1732183842488,-1000.0,0.00041094,2]
[342852860,1732183842497,-500.0,0.00041095,18]
[342852861,1732183842506,-500.0,0.00041095,18]
[342852862,1732183842516,-500.0,0.00041095,18]
[342852863,1732183842525,-500.0,0.00041095,18]
[342852864,1732183842534,-500.0,0.00041095,18]
[342852865,1732183842543,-151.0,0.00041095,14]
[342852866,1732183842552,-151.0,0.00041095,14]
[342852867,1732183842561,-151.0,0.00041095,14]
[342852868,1732183842570,-256.71704,0.00041095,14]
[342852869,1732183842579,-500.0,0.00041095,18]
[342852870,1732183842588,-500.0,0.00041095,18]
[342852871,1732183842597,-500.0,0.00041095,18]
[342852872,1732183842606,-500.0,0.00041095,18]
[342852873,1732183842615,-500.0,0.00041095,18]
[342852874,1732183842624,-500.0,0.00041095,18]
[342852875,1732183842632,-500.0,0.00041095,18]
[342852876,1732183842642,-500.0,0.00041095,18]
[342852877,1732183842651,-500.0,0.00041095,18]
[342852878,1732183842659,-500.0,0.00041095,18]
[342852879,1732183842669,-381.96706877,0.00041095,18]
[342852880,1732183842679,-500.0,0.00041095,18]
[342852881,1732183842688,-500.0,0.00041095,18]
[342852882,1732183842697,-500.0,0.00041095,18]
[342852883,1732183842706,-500.0,0.00041095,18]
[342852884,1732183842715,-500.0,0.00041095,18]
[342852885,1732183842724,-500.0,0.00041095,18]
[342852886,1732183842733,-500.0,0.00041095,18]
[342852887,1732183842744,-500.0,0.00041095,18]
[342852888,1732183842753,-500.0,0.00041095,18]
[342852889,1732183842762,-500.0,0.00041095,18]
[342852890,1732183842772,-500.0,0.00041095,18]
[342852891,1732183842781,-558.95584118,0.00041095,18]
[342852892,1732183842790,-500.0,0.00041095,18]
[342852893,1732183842799,-500.0,0.00041095,18]
[342852894,1732183842809,-394.39131358,0.00041095,18]
[342852895,1732183842818,-500.0,0.00041095,18]
[342852896,1732183842827,-500.0,0.00041095,18]
[342852897,1732183842837,-500.0,0.00041095,18]
[342852898,1732183842846,-600.02342061,0.00041095,18]
[342852899,1732183842855,-500.0,0.00041095,18]
[342852900,1732183842865,-531.84,0.00041095,18]
[342852901,1732183842874,-609.28725621,0.00041095,18]
[342852902,1732183842883,-553.84680388,0.00041095,18]
[342852903,1732183842893,-1137.76,0.00041095,18]
[342852904,1732183842903,-500.0,0.00041095,18]
[342852905,1732183842915,-500.0,0.00041095,18]
[342852906,1732183842925,-500.0,0.00041095,18]
[342852907,1732183842935,-500.0,0.00041095,18]
[342852908,1732183842944,-500.0,0.00041095,18]
[342852909,1732183842954,-500.0,0.00041095,18]
[342852910,1732183842963,-576.37133539,0.00041095,18]
[342852911,1732183842973,-500.0,0.00041095,18]
[342852912,1732183842982,-500.0,0.00041095,18]
[342852913,1732183842991,-500.0,0.00041095,18]
[342852914,1732183843001,-500.0,0.00041095,18]
[342852915,1732183843011,-1610.86,0.00041095,18]
[342852916,1732183843020,-646.84,0.00041095,18]
[342852917,1732183843029,-504.0578126,0.00041095,18]
[342852918,1732183843039,-500.0,0.00041095,18]
[342852919,1732183843049,-1413.47,0.00041095,18]
[342852923,1732183843312,-661.31,0.00041095,18]
[342852924,1732183843322,-1085.19,0.00041095,18]
[342852925,1732183843331,-612.67,0.00041095,18]
[342852926,1732183843340,-575.276714,0.00041095,14]
[342852927,1732183843349,-575.276714,0.00041095,14]
[342852928,1732183843358,-575.276714,0.00041095,14]
[342852929,1732183843367,-151.0,0.00041095,14]
[342852930,1732183843377,-151.0,0.00041095,14]
[342852931,1732183843386,-1746.23,0.00041095,18]
[342852932,1732183843396,-151.0,0.00041095,14]
[342852933,1732183843406,-575.276714,0.00041095,14]
[342852934,1732183843419,-575.276714,0.00041095,14]
[342852935,1732183843430,-575.276714,0.00041095,14]
[342852936,1732183843439,-500.0,0.00041095,18]
[342852937,1732183843449,-500.0,0.00041095,18]
[342852938,1732183843459,-500.0,0.00041095,18]
[342852939,1732183843469,-917.1,0.00041095,18]
[342852940,1732183843478,-223.47930811,0.00041095,18]
[342852941,1732183843488,-500.0,0.00041095,18]
[342852942,1732183843498,-1043.18,0.00041095,18]
[342852943,1732183843507,-500.0,0.00041095,18]
[342852944,1732183843517,-500.0,0.00041095,18]
[342852945,1732183843527,-500.0,0.00041095,18]
[342852946,1732183843536,-968.92,0.00041095,18]
[342852947,1732183843546,-500.0,0.00041095,18]
[342852948,1732183843555,-2927.63,0.00041095,18]
[342852949,1732183843565,-500.0,0.00041095,18]
[342852950,1732183843575,-500.0,0.00041095,18]
[342852951,1732183843584,-500.0,0.00041095,18]
[342852952,1732183843594,-500.0,0.00041095,18]
[342852953,1732183843604,-224.18802407,0.00041095,18]
[342852954,1732183843614,-2429.65,0.00041095,18]
[342852955,1732183843624,-512.50167441,0.00041095,18]
[342852956,1732183843634,-1121.37,0.00041095,18]
[342852957,1732183843644,-182.82406153,0.00041095,18]
[342852958,1732183843653,-500.0,0.00041095,18]
[342852959,1732183843665,-1119.42,0.00041095,18]
[342852961,1732183843676,-500.0,0.00041095,18]
[342852962,1732183843686,-244.534283,0.00041095,18]
[342852965,1732183843696,-1466.332919,0.00041095,18]
[342852967,1732183843706,-151.0,0.00041095,14]
[342852968,1732183843715,-500.0,0.00041095,18]
[342852970,1732183843725,-154.589908,0.00041095,18]
[342852971,1732183843734,-151.0,0.00041095,14]
[342852972,1732183843744,-151.000001,0.00041095,14]
[342852973,1732183843754,-1916.06,0.00041095,18]
[342852974,1732183843763,-500.0,0.00041095,18]
[342852975,1732183843773,-500.0,0.00041095,18]
[342852976,1732183843782,-500.0,0.00041095,18]
[342852977,1732183843792,-1118.3,0.00041095,18]
[342852979,1732183843802,-1201.33,0.00041095,18]
[342852980,1732183843812,-234.46095173,0.00041095,18]
[342852982,1732183843822,-500.0,0.00041095,18]
[342852984,1732183843831,-1377.62,0.00041095,18]
[342852986,1732183843841,-500.0,0.00041095,18]
[342852988,1732183843850,-816.94,0.00041095,18]
[342852989,1732183843860,-3524.48,0.00041095,18]
[342852990,1732183843869,-151.0,0.00041095,14]
[342852991,1732183843879,-151.0,0.00041095,14]
[342852992,1732183843888,-151.0,0.00041095,14]
[342852993,1732183843898,-500.0,0.00041095,18]
[342852994,1732183843907,-500.0,0.00041095,18]
[342852995,1732183843929,-500.0,0.00041095,18]
[342852996,1732183843939,-1593.82,0.00041095,18]
[342852997,1732183843949,-500.0,0.00041095,18]
[342852998,1732183843958,-500.0,0.00041095,18]
[342852999,1732183843968,-500.0,0.00041095,18]
[342853000,1732183843978,-562.14,0.00041095,18]
[342853001,1732183843988,-556.99209404,0.00041095,18]
[342853002,1732183843998,-500.0,0.00041095,18]
[342853003,1732183844008,-171.857632,0.00041095,18]
[342853004,1732183844019,-500.0,0.00041095,18]
[342853005,1732183844028,-500.0,0.00041095,18]
[342853006,1732183844038,-500.0,0.00041095,18]
[342853007,1732183844047,-2576.74,0.00041095,18]
[342853008,1732183844058,-500.0,0.00041095,18]
[342853009,1732183844073,-500.0,0.00041095,18]
[342853010,1732183844093,-500.0,0.00041095,18]
[342853011,1732183844115,-500.0,0.00041095,18]
[342853012,1732183844136,-540.44,0.00041095,18]
[342853013,1732183844152,-500.0,0.00041095,18]
[342853014,1732183844163,-500.0,0.00041095,18]
[342853015,1732183844173,-500.0,0.00041095,18]
[342853016,1732183844183,-500.0,0.00041095,18]
[342853017,1732183844192,-500.0,0.00041095,18]
[342853018,1732183844202,-500.0,0.00041095,18]
[342853019,1732183844211,-1000.0,0.00041095,5]
[342853020,1732183844221,-500.0,0.00041095,18]
[342853021,1732183844231,-500.0,0.00041095,18]
[342853022,1732183844240,-500.0,0.00041095,18]
[342853023,1732183844249,-500.0,0.00041095,18]
[342853024,1732183844259,-500.0,0.00041095,7]
[342853025,1732183844269,-500.0,0.00041095,18]
[342853026,1732183844278,-500.0,0.00041095,18]
[342853027,1732183844288,-630.02,0.00041095,18]
[342853028,1732183844298,-500.0,0.00041095,18]
[342853029,1732183844308,-500.0,0.00041095,18]
[342853030,1732183844317,-500.0,0.00041095,18]
[342853031,1732183844327,-500.0,0.00041095,18]
[342853032,1732183844336,-500.0,0.00041095,18]
[342853033,1732183844345,-500.0,0.00041095,18]
[342853034,1732183844355,-500.0,0.00041095,18]
[342853035,1732183844364,-500.0,0.00041095,18]
[342853036,1732183844374,-500.0,0.00041095,18]
[342853037,1732183844383,-500.0,0.00041095,18]
[342853038,1732183844392,-675.15,0.00041095,18]
[342853039,1732183844401,-500.0,0.00041095,18]
[342853040,1732183844410,-500.0,0.00041095,18]
[342853041,1732183844421,-500.0,0.00041095,18]
[342853042,1732183844430,-588.2,0.00041095,18]
[342853043,1732183844440,-500.0,0.00041095,18]
[342853044,1732183844450,-500.0,0.00041095,18]
[342853045,1732183844459,-500.0,0.00041095,18]
[342853046,1732183844468,-500.0,0.00041095,18]
[342853047,1732183844478,-500.0,0.00041095,18]
[342853048,1732183844487,-500.0,0.00041095,18]
[342853049,1732183844496,-500.0,0.00041095,18]
[342853050,1732183844506,-568.98,0.00041095,18]
[342853051,1732183844515,-612.89,0.00041095,18]
[342853052,1732183844525,-500.0,0.00041095,18]
[342853053,1732183844534,-500.0,0.00041095,18]
[342853054,1732183844543,-1585.32,0.00041095,18]
[342853055,1732183844552,-1087.28,0.00041095,18]
[342853056,1732183844562,-500.0,0.00041095,18]
[342853057,1732183844571,-2010.25,0.00041095,18]
[342853058,1732183844580,-500.0,0.00041095,18]
[342853059,1732183844589,-708.83,0.00041095,18]
[342853060,1732183844598,-500.0,0.00041095,18]
[342853061,1732183844607,-754.21,0.00041095,18]
[342853062,1732183844617,-500.0,0.00041095,18]
[342853063,1732183844627,-500.0,0.00041095,18]
[342853064,1732183844636,-500.0,0.00041095,18]
[342853065,1732183844646,-500.0,0.00041095,18]
[342853066,1732183844655,-703.78,0.00041095,18]
[342853067,1732183844664,-500.0,0.00041095,18]
[342853068,1732183844674,-500.0,0.00041095,18]
[342853069,1732183844683,-500.0,0.00041095,18]
[342853070,1732183844692,-1867.8,0.00041095,18]
[342853071,1732183844701,-500.0,0.00041095,18]
[342853072,1732183844711,-500.0,0.00041095,18]
[342853073,1732183844720,-582.52,0.00041095,18]
[342853074,1732183844729,-1313.19,0.00041095,18]
[342853075,1732183844739,-500.0,0.00041095,18]
[342853076,1732183844748,-500.0,0.00041095,18]
[342853077,1732183844757,-500.0,0.00041095,18]
[342853078,1732183844767,-900.18,0.00041095,18]
[342853079,1732183844777,-500.0,0.00041095,18]
[342853080,1732183844787,-500.0,0.00041095,18]
[342853081,1732183844796,-500.0,0.00041095,18]
[342853082,1732183844806,-500.0,0.00041095,18]
[342853083,1732183844816,-500.0,0.00041095,18]
[342853084,1732183844826,-1040.71,0.00041095,18]
[342853085,1732183844835,-822.89,0.00041095,18]
[342853086,1732183844845,-500.0,0.00041095,18]
[342853087,1732183844854,-500.0,0.00041095,18]
[342853088,1732183844864,-500.0,0.00041095,18]
[342853089,1732183844873,-500.0,0.00041095,18]
[342853090,1732183844883,-1000.0,0.00041095,18]
[342853091,1732183844892,-588.46,0.00041095,18]
[342853092,1732183844902,-500.0,0.00041095,18]
[342853093,1732183844912,-1365.56,0.00041095,18]
[342853094,1732183844922,-500.0,0.00041095,18]
[342853095,1732183844932,-500.0,0.00041095,18]
[342853096,1732183844941,-533.49793986,0.00041095,7]
[342853097,1732183844951,-151.0,0.00041095,14]
[342853098,1732183844961,-151.0,0.00041095,14]
[342853099,1732183844971,-500.0,0.00041095,18]
[342853100,1732183844981,-151.0,0.00041095,14]
[342853101,1732183844990,-249.430851,0.00041095,14]
[342853102,1732183845000,-541.92,0.00041095,18]
[342853103,1732183845010,-151.0,0.00041095,14]
[342853104,1732183845020,-151.0,0.00041095,14]
[342853105,1732183845029,-500.0,0.00041095,18]
[342853106,1732183845038,-739.08,0.00041095,18]
[342853107,1732183845048,-151.500649,0.00041095,14]
[342853108,1732183845057,-500.0,0.00041095,18]
[342853109,1732183845067,-500.32,0.00041095,18]
[342853110,1732183845080,-739.24,0.00041095,18]
[342853111,1732183845091,-500.0,0.00041095,18]
[342853112,1732183845100,-650.8,0.00041095,18]
[342853113,1732183845109,-500.0,0.00041095,18]
[342853114,1732183845121,-1051.86,0.00041095,18]
[342853115,1732183845130,-1098.46,0.00041095,18]
[342853116,1732183845140,-500.0,0.00041095,18]
[342853117,1732183845150,-500.0,0.00041095,18]
[342853118,1732183845160,-500.0,0.00041095,18]
[342853119,1732183845174,-500.0,0.00041095,18]
[342853120,1732183845183,-500.0,0.00041095,18]
[342853121,1732183845192,-667.28,0.00041095,18]
[342853122,1732183845202,-1345.35,0.00041095,18]
[342853123,1732183845211,-158.794962,0.00041095,14]
[342853124,1732183845220,-562.78,0.00041095,18]
[342853125,1732183845229,-158.794962,0.00041095,14]
[342853126,1732183845239,-500.0,0.00041095,18]
[342853127,1732183845249,-500.0,0.00041095,18]
[342853128,1732183845258,-151.0,0.00041095,14]
[342853129,1732183845267,-151.0,0.00041095,14]
[342853130,1732183845277,-500.0,0.00041095,18]
[342853131,1732183845286,-3591.93,0.00041095,18]
[342853132,1732183845296,-151.0,0.00041095,14]
[342853133,1732183845305,-151.0,0.00041095,14]
[342853134,1732183845315,-500.0,0.00041095,18]
[342853135,1732183845325,-500.0,0.00041095,18]
[342853136,1732183845334,-500.0,0.00041095,18]
[342853137,1732183845343,-500.0,0.00041095,18]
[342853138,1732183845354,-507.75,0.00041095,18]
[342853139,1732183845364,-500.0,0.00041095,18]
[342853140,1732183845373,-500.0,0.00041095,18]
[342853141,1732183845383,-500.0,0.00041095,18]
[342853142,1732183845392,-875.62,0.00041095,18]
[342853143,1732183845402,-500.0,0.00041095,18]
[342853144,1732183845412,-500.0,0.00041095,18]
[342853145,1732183845423,-1237.87,0.00041095,18]
[342853146,1732183845432,-500.0,0.00041095,18]
[342853147,1732183845441,-151.0,0.00041095,14]
[342853148,1732183845451,-500.0,0.00041095,18]
[342853149,1732183845460,-151.0,0.00041095,14]
[342853150,1732183845469,-500.0,0.00041095,18]
[342853151,1732183845479,-151.0,0.00041095,14]
[342853152,1732183845488,-151.0,0.00041095,14]
[342853153,1732183845497,-500.0,0.00041095,18]
[342853154,1732183845506,-500.0,0.00041095,2]
[342853155,1732183845516,-500.0,0.00041095,2]
[342853156,1732183845525,-706.24,0.00041095,18]
[342853157,1732183845534,-500.0,0.00041095,2]
[342853158,1732183845543,-876.1,0.00041095,18]
[342853159,1732183845553,-500.0,0.00041095,2]
[342853160,1732183845562,-500.0,0.00041095,2]
[342853161,1732183845571,-650.86,0.00041095,18]
[342853162,1732183845580,-500.0,0.00041095,2]
[342853163,1732183845589,-500.0,0.00041095,2]
[342853164,1732183845599,-500.0,0.00041095,2]
[342853165,1732183845609,-500.0,0.00041095,2]
[342853166,1732183845618,-262.875842,0.00041095,14]
[342853167,1732183845627,-500.0,0.00041095,2]
[342853168,1732183845636,-151.0,0.00041095,14]
[342853169,1732183845646,-500.0,0.00041095,2]
[342853170,1732183845656,-151.0,0.00041095,14]
[342853171,1732183845667,-500.0,0.00041095,2]
[342853172,1732183845677,-151.0,0.00041095,14]
[342853173,1732183845785,-500.0,0.00041095,2]
[342853174,1732183845794,-208.428985,0.00041095,14]
[342853175,1732183845803,-500.0,0.00041095,2]
[342853176,1732183845812,-500.0,0.00041095,2]
[342853177,1732183845822,-500.0,0.00041095,18]
[342853178,1732183845831,-500.0,0.00041095,2]
[342853179,1732183845840,-500.0,0.00041095,2]
[342853180,1732183845849,-500.0,0.00041095,18]
[342853181,1732183845858,-500.0,0.00041095,18]
[342853182,1732183845868,-890.94,0.00041095,18]
[342853183,1732183845877,-500.0,0.00041095,18]
[342853184,1732183845886,-500.0,0.00041095,18]
[342853185,1732183845895,-151.0,0.00041095,14]
[342853186,1732183845904,-500.0,0.00041095,18]
[342853187,1732183845913,-151.0,0.00041095,14]
[342853188,1732183845925,-151.0,0.00041095,14]
[342853189,1732183845934,-152.734144,0.00041095,14]
[342853190,1732183845944,-500.0,0.00041095,18]
[342853191,1732183845953,-705.03,0.00041095,18]
[342853192,1732183845962,-500.0,0.00041095,18]
[342853193,1732183845971,-1636.4,0.00041095,18]
[342853194,1732183845981,-612.6,0.00041095,18]
[342853195,1732183845990,-500.0,0.00041095,18]
[342853196,1732183845999,-500.0,0.00041095,18]
[342853197,1732183846008,-500.0,0.00041095,18]
[342853198,1732183846017,-5000.0,0.00041095,18]
[342853200,1732183846027,-185.39116441,0.00041095,18]
[342853202,1732183846036,-500.0,0.00041095,18]
[342853203,1732183846045,-500.0,0.00041095,18]
[342853204,1732183846054,-500.0,0.00041095,18]
[342853205,1732183846063,-570.88,0.00041095,18]
[342853207,1732183846077,-1015.53,0.00041095,18]
[342853209,1732183846086,-500.0,0.00041095,18]
[342853211,1732183846095,-500.0,0.00041095,18]
[342853212,1732183846104,-638.2,0.00041095,18]
[342853213,1732183846113,-151.0,0.00041095,14]
[342853214,1732183846122,-151.0,0.00041095,14]
[342853215,1732183846131,-500.0,0.00041095,18]
[342853216,1732183846140,-500.0,0.00041095,18]
[342853217,1732183846149,-500.0,0.00041095,18]
[342853218,1732183846161,-599.84,0.00041095,18]
[342853219,1732183846174,-500.0,0.00041095,18]
[342853220,1732183846184,-1342.9,0.00041095,18]
[342853222,1732183846193,-1340.93,0.00041095,18]
[342853223,1732183846203,-1092.75,0.00041095,18]
[342853224,1732183846211,-500.0,0.00041095,18]
[342853225,1732183846221,-151.0,0.00041095,14]
[342853226,1732183846230,-592.9,0.00041095,18]